Cogmind - Beta 17.1 @@@ ROGUE MODE // 2026.08.28 @ 15:07:57 Player: naththebg Result: Sacrificed to X0-1V1 Performance ------------- Evolutions (0) 0 Regions Visited (1) 200 Robots Destroyed (14) 70 Value Destroyed (312) 312 Prototype IDs (0) 0 Alien Tech Used (0) 0 Bonus (0) 0 TOTAL SCORE: 582 Bonus ------- None Cogmind --------- Core Integrity 0/250 Matter 300/300 Energy 250/250 System Corruption 0% Temperature Cool (0) Movement Treading (160) Location -10/Materials Parts ------- > --- POWER (1) -------- Ion Engine > --- PROPULSION (2) --- Light Treads Light Treads > --- UTILITY (2) ------ Improved Heat Sink Large Storage Unit > --- WEAPON (2) ------- Particle Gun Beam Cannon > --- INVENTORY (15) --- Ion Engine Light Treads Light Treads Light Treads Light Treads Wheel Wheel High-capacity Storage Unit Hacking Suite Peak State ------------ > --- POWER ------------ Ion Engine > --- PROPULSION ------- Light Treads Light Treads > --- UTILITY ---------- Improved Heat Sink Small Storage Unit > --- WEAPON ----------- Particle Gun Beam Cannon > --- INVENTORY -------- Ion Engine Light Treads Light Treads Aluminum Leg Aluminum Leg Wheel Wheel Hacking Suite [Rating: 11] Favorites ----------- Power Ion Engine Engine Ion Engine Propulsion Light Treads Treads Light Treads Utility Small Storage Unit Device Improved Heat Sink Storage Small Storage Unit Weapon Beam Cannon Energy Gun Particle Gun Energy Cannon Beam Cannon Ballistic Gun Assault Rifle Build | -11 -10 ------- Run | Yrd Mat Slots Evolved . | . . Power . | . . Propulsion . | . . Utility . | . . Weapon . | . . Parts Attached 12 | 6 6 Power 1 | 1 . Engine 1 | 1 . Core . | . . Reactor . | . . Propulsion 2 | 2 . Treads 2 | 2 . Leg . | . . Wheel . | . . Hover . | . . Flight . | . . Utility 4 | 1 3 Device 1 | . 1 Storage 3 | 1 2 Processor . | . . Hackware . | . . Protection . | . . Artifact . | . . Weapon 5 | 2 3 Energy Gun 2 | 1 1 Energy Cannon 1 | . 1 Ballistic Gun 2 | 1 1 Ballistic Cannon . | . . Launcher . | . . Special Weapon . | . . Impact Weapon . | . . Slashing Weapon . | . . Piercing Weapon . | . . Special Melee Weapon . | . . Unidentified Prototypes . | . . Parts Lost . | . . Power . | . . Propulsion . | . . Utility . | . . Weapon . | . . Highest Loss Streak . | . . To Critical Strikes . | . . Average Backups 7 | 4 7 Power . | . 1 Propulsion 5 | 3 5 Utility . | . . Weapon . | . . Tool/Special . | . . Unused Backups 12 | . 12 Power 1 | . 1 Propulsion 8 | . 8 Utility 2 | . 2 Weapon 1 | . 1 Tool/Special . | . . Average Slot Usage (%) 92 | . 92 Engine 14 | . 14 Treads 28 | . 28 Device 7 | . 7 Storage 14 | . 14 Energy Gun 4 | . 4 Energy Cannon 12 | . 12 Ballistic Gun 10 | . 10 Peak Build Rating 11 | 6 11 Average Rating 7 | 4 8 On Entrance 3 | . 6 Avg Prop Armor Cover (%) 41 | 41 . Naked Turns . | . . Heaviest Build 32 | 14 32 Greatest Support 40 | 40 40 Greatest Overweight (x) . | . . Average Overweight (x) . | . . Largest Inventory Capacity 15 | 8 15 Average Capacity 8 | 7 9 Most Carried 10 | 6 10 Average Carried 7 | 4 8 Final Capacity 15 | 8 15 Final Carried 9 | 6 9 Class Distribution -------------------- 100% | Mutant Dominant Class ---------------- Mutant | -10/Materials Resources | -11 -10 ----------- Run | Yrd Mat Matter Collected 382 | 230 152 Remotely . | . . Salvage Created 429 | . 429 Parts 35 | . 35 Haulers Intercepted 2 | . 2 Recyclers Shooed 3 | . 3 Parts Field Recycled . | . . Retrieved Matter . | . . Parts Self-Destructed . | . . Prevented . | . . Parts Restored . | . . Kills | -11 -10 ------- Run | Yrd Mat Combat Hostiles Destroyed 9 | . 9 Guns 7 | . 7 Cannons 2 | . 2 Classes Destroyed 5 | . 5 Hauler 2 | . 2 Operator 1 | . 1 Watcher 2 | . 2 Swarmer 3 | . 3 Grunt 6 | . 6 Best Kill Streak 3 | . 3 Combat Bots Only 3 | . 3 Max Kills in Single Turn 1 | . 1 Gunslinging . | . . Exploded . | . . Melee . | . . Uniques/NPCs Destroyed . | . . Combat | -11 -10 -------- Run | Yrd Mat Hostile Shots Fired 44 | . 44 Missed 13 | . 13 Hits 31 | . 31 Projectile 31 | . 31 Critical Strikes 1 | . 1 Damage Taken 394 | . 394 Core 102 | . 102 Absorbed by Shields . | . . Core Remaining (%) 100 | 100 . Volleys Fired 50 | . 50 Largest 2 | . 2 Hottest 125 | . 125 Shots Fired 82 | . 82 Gun 33 | . 33 Cannon 49 | . 49 Launcher . | . . Special . | . . Kinetic 28 | . 28 Thermal 53 | . 53 Explosive . | . . Electromagnetic 1 | . 1 Robot Hit Streak 10 | . 10 Robot Miss Streak 4 | . 4 Penetration Max . | . . Secondary Targets . | . . Shots Hit Robots 45 | . 45 Core Hits 19 | . 19 Critical Kills . | . . Critical Parts Destroyed . | . . Critical Strikes 1 | . 1 Burn 1 | . 1 Melee Attacks . | . . Impact . | . . Slashing . | . . Piercing . | . . Sneak Attacks . | . . Combat Hostiles . | . . Follow-up Attacks . | . . Damage Inflicted 701 | . 701 Guns 192 | . 192 Cannons 492 | . 492 Explosions . | . . Melee . | . . Ramming 17 | . 17 Kinetic 164 | . 164 Thermal 520 | . 520 Explosive . | . . Electromagnetic . | . . Impact . | . . Slashing . | . . Piercing . | . . Highest Corruption . | . . Average Corruption . | . . Corruption Purged . | . . Corruption Blocked . | . . Overload Shots . | . . Overflow Damage . | . . Projectiles . | . . Explosions . | . . Melee . | . . Knockbacks . | . . Impact . | . . Kinetic . | . . Secondary . | . . Self-Inflicted Damage . | . . Shots . | . . Rammed 3 | . 3 Targets Rammed 3 | . 3 Kicked . | . . Crushed . | . . Highest Temperature 337 | . 337 Average Temperature 98 | . 98 Received Heat Transfer 186 | . 186 Effects 2 | . 2 Interference 1 | . 1 Short Circuit 1 | . 1 Siege Activations . | . . Martial Activations . | . . Shielding Activations . | . . Robots Disrupted . | . . Combat Hostiles . | . . Robots Corrupted . | . . Combat Hostiles . | . . Parts Fried . | . . Impact Corruptions . | . . Robots Melted . | . . Combat Hostiles . | . . Parts Melted . | . . Heat Transferred 1184 | . 1184 Parts Sabotaged . | . . Parts Stolen . | . . Parts Stripped . | . . Power Chain Reactions . | . . Alert | -11 -10 ------- Run | Yrd Mat Maximum Alert Level . | . . Low Security (%) 100 | 100 100 Level 1 . | . . Level 2 . | . . Level 3 . | . . Level 4 . | . . Level 5 . | . . High Security . | . . Max Security . | . . Peak Influence 88 | . 88 Initial . | . . Average 23 | . 25 Influence Increases 284 | . 284 Destroy 0b10 Robot/C 180 | . 180 Destroy 0b10 Robot/NC 25 | . 25 Destroy Leader 48 | . 48 Successful Hack 14 | . 14 Destroy Structure 2 | . 2 Lose Combat Pursuer 15 | . 15 Influence Decreases 240 | . 240 Time Decay 240 | . 240 Squads Dispatched 2 | . 2 Investigation 1 | . 1 Extermination . | . . Reinforcement 1 | . 1 Assault . | . . Garrison . | . . Intercept . | . . Searches Triggered . | . . Construction Impeded . | . . Haulers Reinforced . | . . Active Scanning Responses . | . . Cargo Convoy Interrupts . | . . Stealth | -11 -10 --------- Run | Yrd Mat Distress Signals 1 | . 1 Communications Jammed . | . . Distress Signals . | . . Times Spotted 17 | . 17 Peak Tracking Total 4 | . 4 Tactical Retreats 1 | . 1 Traps | -11 -10 ------- Run | Yrd Mat Traps Triggered 2 | . 2 Indirectly . | . . Trap Hack Attempts . | . . Triggered . | . . Disarmed . | . . Reprogrammed . | . . Reused . | . . Traps Extracted . | . . Installed . | . . Triggered . | . . Machines | -11 -10 ---------- Run | Yrd Mat Machines Disabled . | . . Max in Single Turn . | . . Machines Repaired . | . . Machines Dismantled . | . . Machines Sabotaged . | . . Overloaded Fab Kills . | . . Hacking | -11 -10 --------- Run | Yrd Mat Machines Accessed 5 | . 5 Terminals 5 | . 5 Fabricators . | . . Repair Stations . | . . Recycling Units . | . . Scanalyzers . | . . Garrison Access . | . . Total Hacks 12 | . 12 Successful 6 | . 6 Failed 6 | . 6 Catastrophic . | . . Database Lockouts . | . . Manual 10 | . 10 Terminals 12 | . 12 Fabricators . | . . Repair Stations . | . . Recycling Units . | . . Scanalyzers . | . . Garrison Access . | . . Terminal Hacks 1 | . 1 Zone Layout 1 | . 1 Fabricator Hacks . | . . Repair Station Hacks . | . . Recycling Unit Hacks . | . . Scanalyzer . | . . Garrison Access Hacks . | . . Unauthorized Hacks 5 | . 5 Terminals 5 | . 5 Botnet 1 | . 1 Skim 4 | . 4 Fabricators . | . . Repair Stations . | . . Recycling Units . | . . Scanalyzers . | . . Garrison Access . | . . Data Cores Recovered 1 | . 1 Used . | . . Hacking Detections 5 | . 5 Full Trace Events 1 | . 1 Feedback Events . | . . Feedback Blocked . | . . Robot Schematics Acquired . | . . Robots Built . | . . Authchips . | . . Time . | . . Total Robot Build Rating . | . . Part Schematics Acquired . | . . Parts Built . | . . Authchips . | . . Time . | . . Total Part Build Rating . | . . Part Studies Acquired . | . . Parts Repaired . | . . Time . | . . Parts Recycled . | . . Recycled Matter . | . . Retrieved Matter . | . . Retrieved Components . | . . Parts Scanalyzed . | . . Part Schematics Acquired . | . . Parts Damaged . | . . Bothacking | -11 -10 ------------ Run | Yrd Mat Used RIF Installer . | . . Robots Hacked . | . . Non-combat . | . . Combat . | . . Robot Hacks Applied . | . . Relay Couplers Released . | . . Fabnet Peak Effective % . | . . Robots Rewired . | . . Allies Hacked . | . . Hacks Repelled . | . . Allies | -11 -10 -------- Run | Yrd Mat Total Allies . | . . Largest Group . | . . Highest-Rated Group . | . . Highest-Rated Ally . | . . Total Orders . | . . Ally Attacks . | . . Total Damage . | . . Kills . | . . Allies Corrupted . | . . Allies Melted . | . . Intel | -11 -10 ------- Run | Yrd Mat Active Infowar (turns) . | . . Robot Analysis Total . | . . Derelict Logs Recovered . | . . Drone Launches . | . . Drone Recoveries . | . . Exploration | -11 -10 ------------- Run | Yrd Mat Turns Passed 1089 | 72 1017 Spaces Moved 562 | 42 520 Core 8 | 8 . Treads 554 | 34 520 Legs . | . . Wheels . | . . Hover . | . . Flight . | . . Fastest Speed 50 | 50 160 Average Speed 158 | 139 160 Slowest Speed 160 | 160 160 Overloaded Moves . | . . Propulsion Burnouts . | . . Robots Hopped . | . . Potential Cave-ins . | . . Cave-ins Triggered . | . . Exploration Rate (%) 37 | 3 72 Regions Visited 1 Branch Regions . Pre-discovered Areas . | . . Known Exits Taken . | . . Unknown Exits Taken 1 | 1 . Scrap Searched . | . . Spaces Dug . | . . Terrain Destroyed . | . . Melee . | . . Projectile . | . . AOE . | . . Terrain Rammed . | . . Walls Destroyed . | . . Machines Disabled . | . . Actions | -11 -10 --------- Run | Yrd Mat Total 677 | 53 624 Wait 31 | . 31 Move 561 | 41 520 Hop . | . . Pick Up 12 | 6 6 Fast Attach 10 | 6 4 Attach . | . . Detach . | . . Swap 2 | . 2 Drop 8 | . 8 Fire 50 | . 50 Melee . | . . Ram . | . . Kick . | . . Crush 3 | . 3 Escape Stasis . | . . Rewire . | . . Trap . | . . Miscellaneous . | . . Route ------- -11/Scrapyard -10/Materials (discovered 2 exits: [*Mat] / [*Sub]) History --------- Turn | Location | Event 4 | -11/Scrapyard | Discovered new exit (range 15) 73 | -11/Scrapyard | Entered Materials 300 | -10/Materials | Build established: Mutant 775 | -10/Materials | Discovered new exit (range 15) 1079 | -10/Materials | Discovered new exit (range 8) 1090 | -10/Materials | Made a sacrifice at D.C.S.S. Altar Unit 1090 | -10/Materials | Sacrificed to X0-1V1 Last Messages --------------- 00942_ R-06 Scavenger collects Aluminum Leg. 00943_ R-06 Scavenger collects Transport Network Coupler. 00970_ Dropped Med. Storage Unit. 00974_ Triggered Explosive Trap. 00974_ An explosion rips through the floor. 00974_ Hadron Collector disabled. 00976_ K-01 Serf collects debris. 00982_ R-06 Scavenger collects Med. Storage Unit. 01004_ Acquired 10 matter. 01012_ Slammed into R-06 Scavenger. 01040_ Triggered Alarm Trap. 01040_ An alarm sounds. 01040_ ALERT: Alarm triggered, dispatching investigation squad. 01042_ T-07 Excavator destroyed. 01047_ G-34 Mercenary suffers critical hit (Burn). 01047_ G-34 Mercenary destroyed. 01057_ U-05 Engineer lays Concrete. 01065_ K-01 Serf collects debris. 01079_ EXIT=FOUND 01090_ Connecting with D.C.S.S. Altar Unit... Map ----- +----------------------------------------------------+ | ????????""" ""????????????????# """"" #??????? | | ???????? ????????????????# """"" #??????? | | ????????? ?????????????????# %""""" #??????? | | ????????? #####+#####??????# % """ #??????? | | ?????????# ## ?????# #??????? | | ?????????# ## """?????# #??????? | | ?????????# ## R"#????# ########?????? | | ?????????# ## """" """#????# #?????????????# | | ?????????# ## """" #????# #?????????????# | | ?????????# ## """" #????# #?????????????# | | ########## ## #????# #?????????????# | | # ###+############## #?????????????# | | # / #?????????????# | | + /! ! #?????????????# | | # % !!%!* #?????????????# | | # ###+############## #?????????????# | | ### ## #???# #?????????????# | | #?# ## """ """ #???# #?????????????# | | #########?#!^## """ """?????# #?????????????+ | | ?##########%=## """ """ #???# #?????????????# | | ?# #= ## #???# %#?????????????# | | ?# """ * # ####+##########???# ############### | | ?# """ # #??????####### % % | | ?# """ # #?????## # ######## | | ?# + ###+######## # #??????? | | ?# """ [ # # #X@ + ########??????? | | ?# """ # # ## # #?????????????? | | ?# """ # # #< # #?????????????? | | ?# # # ## #% #?######??????? | | ?########## # ######### #? #??????? | | ????????### # ## !# # #??????? | | ??#######T# # ##""" #[ # """#??????? | | ??# # ##""" +== + """#??????? | | ??# ############""" ^#%[ # """#??????? | | ??########+#######??????# #%< # #??????? | | ????# ! #??????# !# = #?######??????? | | ????# #??????############?????????????? | | ????# #???????????????????????????????? | | ????# #???????????????????????????????? | | ????# #???????????????????????????????? | | ????##############???????????????????????????????? | | | | | | | | | | | | | | | | | | | +----------------------------------------------------+ Best States ------------- Heat Dissipation 39 Energy Generation 10 Energy Capacity 250 Matter Stores 300 Matter Capacity 300 Sight Range 16 Terrain Scan Density 10 Evasion (%) 50 Recoil Reduction 2 Item Schematics ----------------- None Robot Schematics ------------------ None Fabricated ------------ Nothing Repaired ---------- Nothing Studied --------- None Alien Tech Used ----------------- None Achievements -------------- None Challenges ------------ None Game ------ Seed PlasmaLightningInterpreter Manual? 0 Play Time 00:09:43 Cumulative 598.4 hours Start 2026.08.28 @ 15:02:50 End 2026.08.28 @ 15:07:57 Sessions 1 Manual Loads 0 Difficulty Rogue Special Mode None Game No. 331 Rogue 331 Adventurer 0 Explorer 0 Win Type - Total 20 Types 10/1/3/1/1/0/1/1/0/2 Lore% 86 Gallery% 84 Achievement% 76 Wizard Run 0 Options --------- Layout 0 ASCII 0 Keyboard 0 Movement Mouse Keybinds 0 Fullscreen 1 Font 18/SmallcapsGlow Map View 76x50 Zoom Use 0% Tactical HUD 1 Map Filters NONE Filters NONE Steam 1 RUN: 45e5a6a9-bbc8-41fc-b09b-83442f308916